bitfinex-derivatives/quotes_ETHF0:USTF0_20260119
["timestamp","ask_amount","ask_price","bid_price","bid_amount"]
[1768833412294,0.92573712,3210.0,3208.5,0.14676157]
[1768833412495,0.92573712,3209.9,3208.5,0.14676157]
[1768833412696,0.92573712,3209.8,3208.5,0.14676157]
[1768833412998,1.10869313,3210.2,3208.5,0.14676157]
[1768833413297,0.92600375,3210.1,3208.5,0.14676157]
[1768833413489,0.92600375,3210.0,3208.5,0.14676157]
[1768833413684,0.92600375,3209.9,3208.5,0.14676157]
[1768833413884,0.92600375,3209.8,3208.5,0.14676157]
[1768833414084,1.10869313,3210.2,3208.5,0.14676157]
[1768833414303,2.03555598,3210.1,3208.5,0.14676157]
[1768833414499,0.92686285,3210.0,3208.5,0.00262969]
[1768833414795,0.92686285,3209.9,3208.5,0.00262969]
[1768833414996,0.92686285,3209.8,3208.5,0.00262969]
[1768833415296,0.92686285,3209.7,3208.5,0.00262969]
[1768833415482,0.92703935,3209.6,3208.5,0.00262969]
[1768833415682,1.10869313,3210.0,3208.5,0.00262969]
[1768833415889,1.10869313,3209.7,3208.0,0.13885726]
[1768833416089,1.08283349,3209.6,3208.0,0.13885726]
[1768833416294,0.15588,3209.4,3207.5,0.29481726]
[1768833416594,0.15588,3209.3,3207.5,0.29481726]
[1768833416795,0.92697349,3209.2,3207.5,0.29481726]
[1768833416988,0.15588,3209.3,3207.6,0.13885726]
[1768833416989,0.92697349,3209.1,3207.6,0.13885726]
[1768833417189,0.9270456,3209.0,3207.6,0.13885726]
[1768833417389,0.15588,3209.3,3207.7,0.13885726]
[1768833417690,0.92711095,3209.2,3207.7,0.13885726]
[1768833417890,0.92711095,3209.1,3207.8,0.13885726]
[1768833418192,0.92711095,3209.0,3207.8,0.13885726]
[1768833418391,1.10869313,3209.4,3207.8,0.13885726]
[1768833418592,0.92731877,3209.3,3207.8,0.13885726]
[1768833418791,0.92731877,3209.2,3207.8,0.13885726]
[1768833418991,0.92731877,3209.1,3207.8,0.13885726]
[1768833419193,0.92731877,3209.0,3207.8,0.13885726]
[1768833419392,1.10869313,3209.4,3207.8,0.13885726]
[1768833419696,0.9275394,3209.3,3207.8,0.13885726]
[1768833419891,0.9275394,3209.2,3207.8,0.13885726]
[1768833420196,3.05769313,3209.6,3207.8,0.13885726]
[1768833420391,0.92768275,3209.5,3207.8,0.13885726]
[1768833420591,0.92768275,3209.4,3207.8,0.13885726]
[1768833420799,0.92768275,3209.3,3207.8,0.13885726]
[1768833420990,0.92768275,3209.2,3207.8,0.13885726]
[1768833421194,0.92815048,3209.1,3207.8,0.13885726]
[1768833421396,3.21256313,3209.5,3207.7,0.15596]
[1768833421597,1.12066956,3209.2,3207.5,0.0023604]
[1768833421804,0.92813094,3209.1,3207.5,0.14121766]
[1768833421993,0.92813094,3209.0,3207.5,0.14121766]
[1768833422191,0.92813094,3208.9,3207.5,0.14121766]
[1768833422396,0.92813094,3208.8,3207.5,0.14121766]
[1768833422703,1.10869313,3209.2,3207.5,0.14121766]
[1768833422906,0.92807803,3209.1,3207.5,0.14121766]
[1768833423103,0.92807803,3209.0,3207.5,0.14121766]
[1768833423296,0.92807803,3208.9,3207.5,0.14121766]
[1768833423496,0.92807803,3208.8,3207.6,0.13885726]
[1768833423695,1.10869313,3209.3,3207.6,0.13885726]
[1768833423901,0.92806151,3209.2,3207.6,0.13885726]
[1768833424104,0.92806151,3209.2,3207.7,0.13885726]
[1768833424595,0.92806151,3209.1,3207.7,0.13885726]
[1768833424800,1.10869313,3209.5,3207.9,0.13885726]
[1768833425000,0.92663185,3209.4,3207.9,0.13885726]
[1768833425191,0.92663185,3209.3,3207.9,0.13885726]
[1768833425388,0.92663185,3209.2,3207.9,0.13885726]
[1768833425592,1.26455313,3209.6,3207.9,0.13885726]
[1768833425794,0.92666866,3209.5,3207.9,0.13885726]
[1768833426005,0.92666866,3209.4,3207.9,0.13885726]
[1768833426300,0.92666866,3209.3,3207.9,0.13885726]
[1768833426496,0.92666866,3209.2,3207.9,0.13885726]
[1768833426701,0.92666866,3209.1,3207.9,0.13885726]
[1768833426898,0.92666866,3209.0,3207.9,0.13885726]
[1768833427097,1.10869313,3209.4,3207.9,0.13885726]
[1768833427300,0.92720425,3209.3,3207.9,0.13885726]
[1768833427496,0.92720425,3209.2,3208.0,0.13885726]
[1768833427799,1.10869313,3209.6,3208.0,0.13885726]
[1768833428197,2.03595872,3209.5,3208.0,0.13885726]
[1768833428504,0.92726559,3209.4,3208.1,0.13885726]
[1768833428806,0.92726559,3209.4,3208.3,0.13885726]
[1768833428991,1.10869313,3209.8,3208.4,0.13885726]
[1768833429190,2.03696032,3209.7,3208.4,0.13885726]
[1768833429390,0.92826719,3209.6,3208.4,0.29477726]
[1768833429599,0.92826719,3209.5,3208.5,0.13885726]
[1768833429799,0.92826719,3209.4,3208.5,0.13885726]
[1768833429999,1.10869313,3209.8,3208.5,0.13885726]
[1768833430199,0.93111059,3209.7,3208.9,0.13885726]
[1768833430405,1.10869313,3210.1,3209.0,0.13885726]
[1768833430709,1.10869313,3210.1,3208.5,0.13885726]
[1768833430892,0.02153187,3209.9,3208.3,0.15593]
[1768833431202,1.10869313,3209.6,3208.3,0.15593]
[1768833431805,2.0402328,3209.5,3208.3,0.15593]
[1768833432002,0.93153967,3209.4,3208.0,0.13885726]
[1768833432207,0.93153967,3209.3,3208.0,0.13885726]
[1768833432408,0.93153967,3209.2,3208.0,0.13885726]
[1768833432597,0.93153967,3209.1,3208.0,0.13885726]
[1768833432797,1.10869313,3209.5,3208.0,0.13885726]
[1768833433999,1.10869313,3209.5,3208.1,0.13885726]
[1768833434198,0.93148751,3209.4,3208.1,0.29478726]
[1768833434399,0.93148751,3209.3,3208.4,0.13885726]
[1768833434604,1.10869313,3209.7,3208.4,0.13885726]
[1768833434905,0.93154467,3209.6,3208.4,0.13885726]
[1768833435101,0.93154467,3209.5,3208.4,0.13885726]
[1768833435302,1.10869313,3209.9,3208.4,0.13885726]
[1768833435610,2.04029754,3209.9,3208.4,0.13885726]
[1768833436108,2.04029754,3209.8,3208.4,0.29477726]
[1768833436308,0.93160441,3209.7,3208.7,0.29476726]
[1768833436510,0.93160441,3209.6,3208.8,0.13885726]
[1768833436813,1.10869313,3210.0,3208.9,0.13885726]
[1768833436993,0.93185911,3209.9,3208.9,0.29475726]
[1768833437193,1.11109186,3210.3,3208.9,0.29475726]
[1768833437397,1.11109186,3210.3,3209.0,0.13885726]
[1768833438312,2.04287059,3210.3,3209.0,0.29474726]
[1768833438609,0.93177873,3210.2,3209.0,0.29474726]
[1768833438908,0.93177873,3210.1,3209.1,0.13885726]
[1768833439208,0.93177873,3210.0,3209.1,0.13885726]
[1768833439407,0.00239873,3210.3,3209.1,0.13885726]
[1768833439603,0.93152699,3210.2,3209.1,0.13885726]
[1768833439809,0.93152699,3210.1,3209.1,0.13885726]
[1768833440008,0.93152699,3210.0,3209.1,0.13885726]
[1768833440209,0.00239873,3210.3,3209.1,0.13885726]
[1768833440410,0.93141621,3210.2,3209.1,0.13885726]
[1768833440601,0.00239873,3210.3,3209.1,0.13885726]
[1768833440802,0.9314085,3210.2,3209.1,0.13885726]
[1768833441002,0.00239873,3210.3,3209.1,0.13885726]
[1768833441210,0.93118565,3210.2,3209.1,0.13885726]
[1768833441410,0.00239873,3210.3,3209.0,0.15589]
[1768833441714,0.93115256,3210.2,3209.0,0.15589]
[1768833441903,0.00239873,3210.3,3209.0,0.15589]
[1768833442103,0.93114886,3210.2,3209.0,0.15589]
[1768833442303,0.00239873,3210.3,3209.0,0.15589]
[1768833443509,0.9306439,3210.2,3209.0,0.15589]
[1768833443708,0.00239873,3210.3,3209.0,0.15589]
[1768833443908,0.93060872,3210.2,3209.0,0.15589]
[1768833444099,0.93060872,3210.1,3209.0,0.15589]
[1768833444303,0.00239873,3210.3,3209.0,0.15589]
[1768833444611,0.93048143,3210.2,3209.0,0.15589]
[1768833444913,0.93048143,3210.1,3208.6,0.13885726]
[1768833445107,0.93048143,3210.0,3208.6,0.13885726]
[1768833445306,0.93048143,3209.9,3208.6,0.13885726]
[1768833445501,0.93048143,3209.8,3208.6,0.13885726]
[1768833445700,1.10869313,3210.2,3208.6,0.13885726]
[1768833446410,0.93023846,3210.1,3208.6,0.13885726]
[1768833446598,0.93023846,3210.0,3208.7,0.30043888]
[1768833446797,0.93023846,3209.9,3208.7,0.30043888]
[1768833447011,1.11109186,3210.3,3208.7,0.30043888]
[1768833447210,1.11109186,3210.3,3209.0,0.14452888]
[1768833447211,0.92982183,3210.2,3209.0,0.14452888]
[1768833447405,0.92982183,3210.1,3209.0,0.14452888]
[1768833447714,0.00239873,3210.3,3209.1,0.30041888]
[1768833448307,0.00239873,3210.3,3209.2,0.14452888]
[1768833448509,0.00239873,3210.3,3208.2,3.98515536]
[1768833448510,0.00239873,3210.3,3209.4,0.14452888]
[1768833448713,1.10869313,3211.3,3209.7,0.14452888]
[1768833448908,0.93022084,3211.2,3209.9,0.14452888]
[1768833449212,0.93022084,3211.1,3209.9,0.14452888]
[1768833449407,1.10869313,3211.5,3209.9,0.14452888]
[1768833449610,0.92976925,3211.4,3209.9,0.14452888]
[1768833449916,0.92976925,3211.3,3209.9,0.14724955]
[1768833450110,0.00402607,3211.5,3209.9,0.14724955]
[1768833450417,0.95346244,3211.4,3209.9,0.00272067]
[1768833450713,0.95346244,3211.3,3209.9,0.00272067]
[1768833450910,0.92933844,3211.2,3209.9,0.00272067]
[1768833451106,0.92933844,3211.1,3209.9,0.00272067]
[1768833451411,0.92933844,3211.1,3208.6,3.117]
[1768833451412,0.17722371,3210.4,3208.6,3.117]
[1768833451709,1.86532346,3210.0,3208.5,0.14452888]
[1768833452312,1.28573177,3210.4,3208.5,0.14452888]
[1768833452313,1.28573177,3210.4,3208.5,0.14722437]
[1768833452512,0.92895258,3210.3,3208.5,0.30314437]
[1768833452716,0.92895258,3210.2,3208.6,0.15591]
[1768833452905,0.92895258,3210.1,3208.7,0.14452888]
[1768833453105,0.15583,3210.4,3208.7,0.14452888]
[1768833453304,0.92919894,3210.3,3208.7,0.14452888]
[1768833453528,0.92919894,3210.2,3208.7,0.14452888]
[1768833453816,0.92919894,3210.1,3208.7,0.14452888]
[1768833454019,0.17853587,3210.4,3208.7,0.14452888]
[1768833454221,0.02270587,3210.3,3208.6,0.15591]
[1768833454526,0.92948991,3210.2,3208.6,0.15591]
[1768833455412,0.92948991,3210.2,3208.7,0.14452888]
[1768833455611,0.92948991,3210.1,3208.7,0.14452888]
[1768833455811,0.92948991,3210.0,3208.7,0.14452888]
[1768833456021,1.10850806,3210.4,3208.7,0.14452888]
[1768833456219,2.03680386,3210.4,3208.7,0.14452888]
[1768833456915,2.05588296,3210.4,3208.7,0.14452888]
[1768833457126,0.9282958,3210.3,3208.7,0.14452888]
[1768833457512,1.12758716,3210.2,3208.6,0.15591]
[1768833457710,2.05588296,3210.1,3208.5,0.00269549]
[1768833457912,0.9282958,3210.0,3208.5,0.00269549]
[1768833458524,2.79361926,3210.0,3208.5,0.00269549]
[1768833458720,0.9282958,3209.9,3208.5,0.00269549]
[1768833460421,0.94724275,3209.9,3208.5,0.00269549]
[1768833460628,1.86532346,3209.5,3208.1,0.15594]
[1768833461535,0.17479695,3209.9,3208.1,0.29773704]
[1768833461832,0.92864505,3209.8,3208.1,0.30091885]
[1768833462034,0.92864505,3209.7,3208.2,0.14179704]
[1768833462231,0.92864505,3209.6,3208.1,0.15912181]
[1768833462440,0.92864505,3209.5,3208.1,0.15912181]
[1768833462636,1.26435806,3209.9,3208.1,0.15912181]
[1768833462841,0.92869497,3209.8,3208.2,0.14179704]
[1768833463034,0.92869497,3209.7,3208.2,0.14179704]
[1768833463337,0.92869497,3209.6,3208.2,0.14179704]
[1768833463533,1.10850806,3210.0,3208.2,0.14179704]
[1768833463729,2.03726063,3210.0,3208.2,0.14179704]
[1768833463932,0.92875257,3209.9,3208.4,0.14179704]
[1768833464133,0.92875257,3209.8,3208.4,0.14179704]
[1768833464439,1.10850806,3210.2,3208.4,0.14179704]
[1768833465245,1.88555786,3209.8,3208.1,0.00318181]
[1768833465535,0.92898491,3209.7,3208.1,0.14497885]
[1768833465837,0.92898491,3209.6,3208.1,0.14497885]
[1768833466039,1.10850806,3210.0,3208.1,0.14497885]
[1768833466040,0.0202344,3209.9,3208.1,0.14497885]
[1768833466239,0.9289544,3209.8,3208.1,0.14497885]
[1768833466541,0.9289544,3209.7,3208.1,0.14497885]
[1768833466838,0.9289544,3209.6,3208.1,0.14497885]
[1768833467034,0.9289544,3209.5,3208.1,0.00318181]
[1768833467233,0.02233051,3209.7,3208.1,0.00318181]
[1768833467438,0.92881721,3209.6,3208.1,0.00318181]
[1768833467744,0.92881721,3209.5,3208.1,0.00318181]
[1768833468039,0.02233051,3209.7,3208.1,0.00318181]
[1768833468239,0.92872915,3209.6,3208.1,0.00318181]
[1768833468437,0.92872915,3209.5,3208.1,0.00318181]
[1768833468641,0.02233051,3209.7,3208.1,0.00318181]
[1768833468830,0.92872916,3209.6,3208.1,0.14497885]
[1768833469032,0.92872916,3209.5,3208.1,0.14497885]
[1768833469229,1.86532346,3209.8,3208.1,0.14497885]
[1768833469438,0.92865846,3209.7,3208.1,0.14497885]
[1768833469732,0.92865846,3209.6,3208.1,0.00318181]
[1768833469939,0.92865846,3209.5,3208.1,0.00318181]
[1768833470135,1.88745722,3209.8,3208.1,0.00318181]
[1768833470336,0.92857543,3209.7,3208.1,0.00318181]
[1768833470535,0.92857543,3209.6,3208.1,0.00318181]
[1768833470737,0.92857543,3209.5,3208.1,0.00318181]
[1768833470938,0.92857543,3209.4,3208.1,0.00318181]
[1768833471140,0.02213376,3209.7,3208.1,0.00318181]
[1768833471348,0.92849014,3209.6,3208.1,0.00318181]
[1768833471549,0.92849014,3209.5,3208.1,0.00318181]
[1768833471745,0.92849014,3209.4,3208.1,0.00318181]
[1768833472045,0.02213376,3209.7,3208.1,0.00318181]
[1768833472230,0.92841682,3209.6,3208.1,0.00318181]
[1768833472431,0.92841682,3209.5,3208.1,0.00318181]
[1768833472630,0.92841682,3209.4,3208.1,0.00318181]
[1768833472945,0.92841682,3209.3,3208.1,0.00318181]
[1768833473130,1.28650182,3209.7,3208.1,0.00318181]
[1768833473326,0.92831741,3209.6,3208.1,0.00318181]
[1768833473527,0.92831741,3209.5,3208.1,0.00318181]
[1768833473727,0.92831741,3209.4,3208.1,0.00318181]
[1768833474031,0.92831741,3209.3,3208.1,0.00318181]
[1768833474228,0.15586,3209.6,3208.1,0.00318181]
[1768833474434,0.92822633,3209.5,3208.1,0.00318181]
[1768833474632,0.92822633,3209.4,3208.1,0.00318181]
[1768833474834,0.92822633,3209.3,3208.1,0.13460121]
[1768833475142,0.15586,3209.6,3208.1,0.13460121]
[1768833475339,0.92813691,3209.5,3208.3,0.1314194]
[1768833475544,0.92813691,3209.4,3208.3,0.1314194]
[1768833475740,1.10850806,3209.8,3208.3,0.1314194]
[1768833477744,2.03665053,3209.8,3208.3,0.1314194]
[1768833479746,0.15585,3210.0,3208.6,0.1314194]
[1768833479747,0.92814247,3209.7,3208.6,0.1314194]
[1768833479945,1.10850806,3210.2,3208.7,0.1314194]
[1768833480146,2.03726877,3210.1,3208.7,0.2873194]
[1768833480346,0.92876071,3210.0,3208.7,0.2873194]
[1768833480545,0.92876071,3209.9,3208.7,0.2873194]
[1768833480742,0.92876071,3209.8,3208.7,0.2873194]
[1768833480950,0.92876071,3209.7,3208.7,0.2873194]
[1768833481141,1.10850806,3210.1,3208.7,0.2873194]
[1768833481743,2.03895586,3210.1,3208.8,0.1314194]
[1768833481945,0.9304478,3210.0,3208.8,0.1314194]
[1768833482139,0.9304478,3209.9,3208.8,0.1314194]
[1768833482345,0.9304478,3209.8,3208.8,0.1314194]
[1768833482652,0.9304478,3209.7,3208.8,0.1314194]
[1768833482852,1.10850806,3210.1,3208.8,0.1314194]
[1768833483748,1.10850806,3210.1,3208.7,0.1559]
[1768833485544,2.0394492,3210.0,3208.7,0.1559]
[1768833485747,0.93094114,3209.9,3208.7,0.1559]
[1768833486055,0.93094114,3209.8,3208.7,0.1559]
[1768833486257,0.93094114,3209.7,3208.7,0.1559]
[1768833486459,1.10850806,3210.0,3208.7,0.1559]
[1768833486650,0.9310594,3209.9,3208.7,0.1559]
[1768833486943,0.9310594,3209.8,3208.7,0.1559]
[1768833487143,0.9310594,3209.7,3208.7,0.1559]
[1768833487349,1.10850806,3210.1,3208.7,0.1559]
[1768833487552,1.10850806,3210.1,3208.7,0.2873194]
[1768833487950,2.03960775,3210.1,3208.7,0.2873194]
[1768833488157,0.93109969,3210.0,3208.7,0.2873194]
[1768833488358,0.93109969,3209.9,3208.7,0.2873194]
[1768833488556,1.10850806,3210.1,3208.1,0.00318181]
[1768833488557,1.10850806,3210.3,3209.2,0.1314194]
[1768833488753,0.93121336,3210.2,3209.3,0.1314194]
[1768833488951,1.10850806,3210.6,3209.3,0.1314194]
[1768833489352,0.9312845,3210.5,3209.3,0.1314194]
[1768833489554,0.9312845,3210.4,3209.3,0.1314194]
[1768833489755,0.9312845,3210.3,3209.3,0.1314194]
[1768833489958,1.10850806,3210.7,3209.3,0.1314194]
[1768833490151,1.10850806,3210.7,3209.2,0.15588]
[1768833490365,1.13010769,3210.7,3209.2,0.15588]
[1768833490565,0.93133958,3210.6,3209.2,0.15588]
[1768833490861,0.93133958,3210.5,3209.2,0.15588]
[1768833491064,0.93133958,3210.4,3209.2,0.15588]
[1768833491265,0.93133958,3210.3,3209.2,0.15588]
[1768833491459,1.13010769,3210.7,3209.2,0.15588]
[1768833491660,0.93075936,3210.6,3209.2,0.15588]
[1768833491960,0.93075936,3210.5,3209.2,0.15588]
[1768833492163,0.93075936,3210.4,3209.2,0.15588]
[1768833492362,0.02159963,3210.7,3209.2,0.15588]
[1768833492562,0.93052871,3210.6,3209.2,0.15588]
[1768833492867,0.93052871,3210.5,3209.2,0.2872994]
[1768833493161,0.93052871,3210.4,3209.3,0.1314194]
[1768833493461,1.10850806,3210.8,3209.3,0.1314194]
[1768833493660,2.03884251,3210.8,3209.3,0.1314194]
[1768833494060,0.93033445,3210.7,3209.3,0.1314194]
[1768833494258,0.93033445,3210.6,3209.3,0.1314194]
[1768833494459,0.93033445,3210.5,3209.3,0.1314194]
[1768833494665,0.93033445,3210.4,3209.3,0.1314194]
[1768833494965,1.10850806,3210.8,3209.3,0.1314194]
[1768833495372,0.93012915,3210.7,3209.3,0.1314194]
[1768833495562,0.93012915,3210.6,3209.3,0.1314194]
[1768833495757,0.93012915,3210.5,3209.3,0.1314194]
[1768833495953,1.10850806,3210.9,3209.3,0.1314194]
[1768833496159,2.03846437,3210.9,3209.3,0.1314194]
[1768833498672,3.97946437,3210.9,3209.3,0.1314194]
[1768833498874,0.92995631,3210.8,3209.3,0.1314194]
[1768833499074,0.92995631,3210.7,3209.3,0.1314194]
[1768833499274,0.92995631,3210.6,3209.3,0.1314194]
[1768833499480,0.92995631,3210.5,3209.3,0.1314194]
[1768833499669,3.04950806,3210.9,3209.3,0.1314194]
[1768833499974,0.92942997,3210.8,3209.3,0.1314194]
[1768833500174,0.92942997,3210.7,3209.3,0.1314194]
[1768833500362,0.92942997,3210.6,3209.3,0.1314194]
[1768833500561,0.92942997,3210.5,3209.3,0.1314194]
[1768833500762,1.10850806,3210.9,3209.3,0.1314194]
[1768833500964,2.0379066,3210.9,3209.5,0.1314194]
[1768833501271,1.66303969,3211.1,3209.7,0.1314194]
[1768833501272,0.92939854,3210.8,3209.7,0.1314194]
[1768833501466,0.92939854,3210.7,3209.7,0.1314194]
[1768833501666,1.10850806,3211.1,3209.7,0.1314194]
[1768833501868,0.92942759,3211.1,3209.8,0.1314194]
[1768833502162,0.92942759,3211.0,3209.8,0.1314194]
[1768833502369,0.92942759,3210.9,3209.8,0.1314194]
[1768833502675,1.12792014,3211.3,3209.7,0.15586]
[1768833502869,0.92941319,3211.2,3209.7,0.15586]
[1768833503070,0.92941319,3211.1,3209.7,0.15586]
[1768833503370,0.92941319,3211.0,3209.7,0.15586]
[1768833503669,0.92941319,3210.9,3209.7,0.15586]
[1768833503872,1.12792014,3211.3,3209.7,0.15586]
[1768833504170,0.92943195,3211.2,3209.7,0.15586]
[1768833504367,0.92943195,3211.1,3209.7,0.15586]
[1768833504678,0.02076134,3210.9,3209.1,0.15589]
[1768833504978,0.02076134,3210.4,3208.5,0.15591]
[1768833505172,0.92943195,3210.3,3208.5,0.15591]
[1768833505366,0.92943195,3210.2,3208.5,0.15591]
[1768833505569,0.92943195,3210.1,3208.5,0.2935659]
[1768833505778,0.92943195,3210.0,3208.5,0.2935659]
[1768833505974,0.92943195,3209.9,3208.5,0.2935659]
[1768833506175,0.92958372,3209.8,3208.5,0.2935659]
[1768833506370,1.1292694,3210.2,3208.5,0.2935659]
[1768833506575,0.92960829,3210.1,3208.5,0.2935659]
[1768833506762,0.92960829,3210.0,3208.5,0.2935659]
[1768833506968,0.92960829,3209.9,3208.5,0.2935659]
[1768833507167,0.92960829,3209.8,3208.5,0.2935659]
[1768833507367,1.2851094,3210.2,3208.5,0.2935659]
[1768833507676,0.9298239,3210.1,3208.5,0.2935659]
[1768833507882,0.9298239,3210.0,3208.5,0.2935659]
[1768833508075,1.12798634,3210.0,3208.1,0.14083771]
[1768833508271,1.12798634,3209.7,3208.1,0.00318181]
[1768833508473,1.10850806,3209.6,3208.1,0.00318181]
[1768833508965,2.03833196,3209.6,3208.1,0.00318181]
[1768833509162,2.03833196,3209.5,3208.1,0.00318181]
[1768833509362,0.9298239,3209.4,3208.1,0.00318181]
[1768833509579,0.9298239,3209.3,3208.1,0.00318181]
[1768833509777,0.9298239,3209.2,3208.1,0.00318181]
[1768833509978,0.00389932,3209.2,3208.1,0.00318181]
[1768833516680,0.00389932,3209.2,3208.2,0.1376559]
[1768833517074,0.00389932,3209.2,3208.1,0.15912181]
[1768833518574,0.00389932,3209.2,3208.1,0.29677771]
[1768833519677,0.00389932,3209.2,3208.1,0.14083771]
[1768833519877,0.00389932,3209.2,3208.1,0.00318181]
[1768833522187,0.00389932,3209.2,3208.1,0.14381585]
[1768833531292,0.92822204,3209.1,3208.1,0.14381585]
[1768833531486,0.00389932,3209.2,3208.1,0.14381585]
[1768833531685,0.92822204,3209.1,3208.1,0.14381585]
[1768833531891,0.00389932,3209.2,3208.1,0.14381585]
[1768833532092,0.92822141,3209.1,3208.1,0.14381585]
[1768833532294,0.00389932,3209.2,3208.1,0.14381585]
[1768833532495,0.92882561,3209.1,3208.1,0.14381585]
[1768833532792,0.00389932,3209.2,3208.1,0.14381585]
[1768833532987,0.92882565,3209.1,3208.1,0.14381585]
[1768833533189,0.00389932,3209.2,3208.1,0.14381585]
[1768833533395,0.92960315,3209.1,3208.1,0.14381585]
[1768833533584,0.92960315,3209.0,3208.1,0.14381585]
[1768833533785,0.00389932,3209.2,3208.1,0.14381585]
[1768833533985,0.92960438,3209.1,3208.1,0.14381585]
[1768833534196,0.92960438,3209.0,3208.1,0.14381585]
[1768833534395,0.92960438,3208.9,3208.1,0.14381585]
[1768833534597,0.00389932,3209.2,3208.1,0.14381585]
[1768833534893,0.93076336,3209.1,3208.1,0.14381585]
[1768833535094,0.93076336,3209.0,3208.1,0.14381585]
[1768833535286,1.11240738,3209.2,3208.1,0.14381585]
[1768833535287,0.93076336,3208.9,3208.1,0.14381585]
[1768833535488,0.93076336,3208.8,3208.1,0.14381585]
[1768833535694,1.11240738,3209.2,3208.1,0.14381585]
[1768833537286,1.10850806,3209.1,3208.1,0.14381585]
[1768833540305,2.03974795,3209.1,3208.1,0.14381585]
[1768833540598,0.93123989,3209.0,3208.1,0.14381585]
[1768833540800,0.93123989,3208.9,3208.1,0.14381585]
[1768833540988,0.93123989,3208.8,3208.1,0.14381585]
[1768833541288,0.93123989,3208.7,3208.1,0.14381585]
[1768833541487,1.10850806,3209.1,3208.1,0.14381585]
[1768833543599,1.10850806,3209.0,3207.7,0.14214102]
[1768833543901,1.10850806,3208.5,3207.3,0.14214102]
[1768833544300,0.9320281,3208.4,3207.3,0.14214102]
[1768833544500,1.10850806,3208.6,3207.3,0.14214102]
[1768833544501,0.9320281,3208.3,3207.3,0.14214102]
[1768833544701,0.9320281,3208.2,3207.3,0.14579925]
[1768833544905,1.29702989,3208.4,3207.3,0.14579925]
[1768833545106,0.93125095,3208.3,3207.3,0.14579925]
[1768833545301,0.93125095,3208.2,3207.3,0.14579925]
[1768833545503,1.10850806,3208.6,3207.3,0.14579925]
[1768833545698,2.03943236,3208.6,3207.3,0.14579925]
[1768833546314,1.29702989,3208.3,3207.3,0.14579925]
[1768833546505,0.9309243,3208.2,3207.3,0.14579925]
[1768833546813,1.29702989,3208.3,3207.3,0.14579925]
[1768833547105,1.29702989,3207.9,3206.6,0.15601]
[1768833547703,1.29702989,3208.0,3206.6,0.15601]
[1768833547900,1.29702989,3208.0,3206.7,0.156]
[1768833548914,1.29702989,3208.0,3206.8,0.14214102]
[1768833549111,2.40553795,3208.4,3206.9,0.14214102]
[1768833549314,0.9298039,3208.3,3207.4,0.14214102]
[1768833549504,1.29702989,3209.0,3207.4,0.14214102]
[1768833549505,2.40553795,3209.0,3207.4,0.14214102]
[1768833549706,0.92977487,3208.9,3207.4,0.14214102]
[1768833549905,0.92977487,3208.8,3207.4,0.14214102]
[1768833550110,0.92977487,3208.7,3207.4,0.14214102]
[1768833550318,0.92977487,3208.6,3207.4,0.14214102]
[1768833550513,2.40553795,3209.0,3207.4,0.14214102]
[1768833550708,0.92989483,3208.9,3207.4,0.14214102]
[1768833550910,0.92989483,3208.8,3207.4,0.14214102]
[1768833551213,0.92989483,3208.7,3207.5,0.14214102]
[1768833551408,0.92989483,3208.6,3207.5,0.14214102]
[1768833551607,2.40553795,3209.0,3207.5,0.29810102]
[1768833551915,0.92992828,3208.9,3207.7,0.14214102]
[1768833552101,0.92992828,3208.8,3207.7,0.14214102]
[1768833552304,0.92995676,3208.7,3207.6,0.15596]
[1768833552499,1.29702989,3208.8,3207.6,0.15596]
[1768833552710,0.92995683,3208.7,3207.6,0.15596]
[1768833552912,1.29702989,3208.8,3207.6,0.15596]
[1768833553115,0.92995708,3208.7,3207.6,0.15596]
[1768833553301,1.24075792,3209.1,3207.6,0.15596]
[1768833553507,1.29702989,3208.9,3207.6,0.15596]
[1768833553709,0.93000243,3208.8,3207.6,0.15596]
[1768833553914,0.93000243,3208.7,3207.6,0.15596]
[1768833554120,1.29702989,3208.9,3207.6,0.15596]
[1768833554316,0.93000453,3208.8,3207.6,0.15596]
[1768833554512,0.93000453,3208.7,3207.6,0.15596]
[1768833554718,1.29702989,3208.9,3207.6,0.15596]
[1768833555013,0.93005029,3208.8,3207.6,0.15596]
[1768833555214,0.93005029,3208.7,3207.6,0.15596]
[1768833555519,1.29702989,3208.9,3207.6,0.15596]
[1768833555720,0.93009046,3208.8,3207.6,0.15596]
[1768833556022,1.29702989,3208.9,3207.6,0.15596]
[1768833556320,0.93009077,3208.8,3207.6,0.15596]
[1768833556520,1.29702989,3208.9,3207.6,0.15596]
[1768833556712,0.93014405,3208.8,3207.6,0.15596]
[1768833557020,1.29702989,3208.9,3207.6,0.15596]
[1768833557209,0.9301415,3208.8,3207.6,0.15596]
[1768833557409,1.29702989,3208.9,3207.6,0.15596]
[1768833557616,0.93019808,3208.8,3207.6,0.15596]
[1768833557914,1.29702989,3208.9,3207.6,0.15596]
[1768833558117,0.9301997,3208.8,3207.6,0.15596]
[1768833558318,0.13224986,3209.1,3207.6,0.15596]
[1768833558518,1.29702989,3208.9,3207.6,0.15596]
[1768833558819,0.93021652,3208.8,3207.6,0.15596]
[1768833559815,0.93021652,3208.8,3207.8,0.15595]
[1768833560020,2.40943727,3209.2,3207.8,0.15595]
[1768833560220,0.93024258,3209.1,3207.8,0.15595]
[1768833560417,0.93024258,3209.0,3207.8,0.15595]
[1768833560630,0.93024258,3208.9,3207.8,0.15595]
[1768833560831,0.93024258,3208.8,3207.8,0.15595]
[1768833561033,2.40943727,3209.2,3207.8,0.15595]
[1768833561233,0.93026249,3209.1,3207.8,0.15595]
[1768833561533,0.93026249,3209.0,3207.8,0.15595]
[1768833561728,0.93026249,3208.9,3207.8,0.15595]
[1768833561920,0.93026249,3208.8,3207.8,0.15595]
[1768833562123,2.40943727,3209.2,3207.8,0.15595]
[1768833562323,0.93028728,3209.1,3208.0,0.15594]
[1768833562535,0.93028728,3209.0,3208.0,0.15594]
[1768833562730,0.00389932,3209.2,3208.0,0.29768193]
[1768833563031,1.29626804,3209.0,3208.0,0.29768193]
[1768833563330,1.29626804,3208.6,3208.0,0.15594]
[1768833564426,1.29626804,3208.6,3207.2,0.14174193]
[1768833564626,1.29626804,3208.6,3207.6,0.15596]
[1768833565329,1.29626804,3208.4,3207.6,0.15596]
[1768833566529,1.29626804,3208.4,3207.7,0.15596]
[1768833566736,1.11240738,3209.2,3207.7,0.15596]
[1768833566737,1.29626804,3208.7,3207.7,0.15596]
[1768833567135,1.29626804,3208.7,3207.5,0.14174193]
[1768833568634,1.29626804,3208.8,3207.9,0.15595]
[1768833570335,1.11240738,3209.2,3207.9,0.15595]
[1768833570539,1.29626804,3208.6,3207.9,0.15595]
[1768833572433,1.11240738,3209.2,3207.9,0.15595]
[1768833572639,0.93030097,3209.1,3208.0,0.15594]
[1768833572836,1.29626804,3208.9,3208.0,0.15594]
[1768833578242,0.93127252,3208.8,3208.0,0.15594]
[1768833578543,1.29626804,3208.9,3208.0,0.15594]
[1768833578743,0.93127288,3208.8,3208.0,0.15594]